fUST/lending_fUST_20240616
["ID","MTS","AMOUNT","RATE_DAILY","PERIOD"]
[329640559,1718531000273,3000.0,0.00023,30]
[329640672,1718531434835,-311.3807244,0.00014398,2]
[329640674,1718531434864,-425.52260696,0.00014436,2]
[329640780,1718531447632,-4134.03180184,0.00014436,2]
[329640781,1718531447644,-192.081066,0.00014454,2]
[329640783,1718531447662,-318.6149584,0.00014566,2]
[329640784,1718531447681,-1609.19156677,0.00015731,2]
[329640785,1718531447692,-153.0,0.00015784,2]
[329640786,1718531447705,-2044.8670784,0.00015785,2]
[329640787,1718531447721,-11374.73793137,0.00015785,2]
[329640788,1718531447734,-17584.87570893,0.00015787,2]
[329640789,1718531447750,-157.02458144,0.00015831,3]
[329640790,1718531447763,-1156.6012532,0.00015886,2]
[329640791,1718531447789,-258.65469884,0.00015989,2]
[329640792,1718531447801,-3976.58537345,0.00015989,2]
[329640793,1718531447814,-1585.40385561,0.0001599,2]
[329640795,1718531447828,-181.8861641,0.00015994,2]
[329640796,1718531447839,-1000.0,0.00016,7]
[329640797,1718531447853,-1356.29031401,0.00016,2]
[329640799,1718531447865,-8906.33380176,0.00016094,2]
[329640801,1718531447883,-417.75251115,0.00016098,7]
[329640802,1718531447895,-2655.07600797,0.000161,2]
[329640803,1718531447928,-181.8861641,0.00016109,2]
[329640805,1718531447943,-288.229914,0.00016164,2]
[329640806,1718531447959,-169.92093377,0.00016223,2]
[329640836,1718531598071,3000.0,0.00023,30]
[329640838,1718532197505,3000.0,0.00023,30]
[329640889,1718532635102,-659.9278516,0.00015417,2]
[329640890,1718532635128,-1356.29031401,0.00016,2]
[329640891,1718532635139,-23.40532391,0.0001606,3]
[329640923,1718532646736,-130.82318875,0.0001606,3]
[329640924,1718532646750,-284.021422,0.00016164,2]
[329640925,1718532646762,-726.93249155,0.00016238,2]
[329640926,1718532646850,-765.12638158,0.00016238,2]
[329640928,1718532646880,-771.12999847,0.0001633,2]
[329640930,1718532646903,-476.29701754,0.00016331,2]
[329640932,1718532646918,-343.94057279,0.00016332,2]
[329640933,1718532646933,-1039.8535307,0.00016332,2]
[329640934,1718532647085,-289.89676959,0.00016332,2]
[329640955,1718532649297,-1333.62150023,0.00016332,2]
[329640956,1718532649308,-184.71870719,0.00016333,2]
[329640962,1718532676613,213.68359481,0.00016331,30]
[329640966,1718532708443,1208.16914368,0.00021879,30]
[329640967,1718532709794,151.02114296,0.00017483,30]
[329640968,1718532709882,151.02114296,0.00017133,120]
[329640969,1718532727499,524.71099009,9.999e-05,2]
[329640970,1718532741214,928.20234735,9.999e-05,2]
[329640971,1718532831383,3000.0,0.00023,30]
[329640982,1718533058675,1208.15706042,0.00021939,30]
[329640983,1718533060280,151.01963255,0.00017531,30]
[329640984,1718533060434,151.01963255,0.00017181,120]
[329640985,1718533188565,3000.0,0.0002408,35]
[329640986,1718533189043,524.71099009,9.999e-05,2]
[329640987,1718533213666,3000.0,0.0002475,120]
[329640988,1718533223235,3000.0,0.0002475,120]
[329640989,1718533249713,3000.0,0.0002475,120]
[329640990,1718533257858,3000.0,0.0002475,120]
[329640991,1718533264290,3000.0,0.0002475,120]
[329640992,1718533270976,3000.0,0.0002475,120]
[329640994,1718533302807,3000.0,0.0002475,120]
[329640995,1718533312456,3000.0,0.0002475,120]
[329640996,1718533318060,3000.0,0.0002475,120]
[329640997,1718533408387,132.5,0.000232,59]
[329640998,1718533441966,3000.0,0.00023,30]
[329640999,1718533508066,1500.0,0.00023,60]
[329641000,1718533508139,918.41513848,9.999e-05,2]
[329641001,1718533511175,32000.0,0.00023,30]
[329641008,1718533551622,26054.0,0.00023,30]
[329641010,1718533644613,524.71099009,9.999e-05,2]
[329641012,1718533647670,1208.15706042,0.00021779,30]
[329641013,1718533649187,151.01963255,0.00017403,30]
[329641014,1718533649279,151.01963255,0.00017055,120]
[329641034,1718533835864,-271.4286401,0.00014026,2]
[329641035,1718533835879,-2476.91548945,0.00014427,2]
[329641036,1718533835896,-253.91480599,0.00014428,2]
[329641078,1718533842703,-612.27675899,0.00014427,2]
[329641080,1718533842732,-270.7961841,0.00014428,2]
[329641081,1718533842771,-1391.52098561,0.00015352,2]
[329641083,1718533842785,-300.0,0.0001545,2]
[329641084,1718533842814,-705.4983384,0.00015451,2]
[329641086,1718533842825,-42137.08753109,0.00015451,2]
[329641088,1718533842839,-33430.17261482,0.00015452,2]
[329641089,1718533842877,-240.28559895,0.00015942,2]
[329641090,1718533842891,-1356.29031401,0.00016,2]
[329641091,1718533842905,-240.28559895,0.00016138,2]
[329641092,1718533842920,-279.513205,0.00016164,2]
[329641093,1718533842936,-72247.64746588,0.00016233,2]
[329641233,1718533848279,-302.14849804,0.00016233,2]
[329641357,1718533851160,-1327.92664527,0.00016232,2]
[329641359,1718533851185,-2186.21671284,0.00016233,2]
[329641361,1718533851204,-483.68080341,0.00016233,2]
[329641528,1718533997908,1208.15706042,0.00022583,30]
[329641529,1718533999824,151.01963255,0.00018046,30]
[329641530,1718533999886,151.01963255,0.00017685,120]
[329641531,1718534034997,3000.0,0.00023,30]
[329641534,1718534196222,1282.41516125,0.0001,2]
[329641535,1718534236772,155.0,0.00018,30]
[329641536,1718534241441,1126.2,0.00016,30]
[329641537,1718534286225,510.23063249,9.999e-05,2]
[329641538,1718534293231,524.71099009,9.999e-05,2]
[329641539,1718534614899,1208.16914368,0.00022569,30]
[329641540,1718534616589,151.02114296,0.00018035,30]
[329641541,1718534616682,151.02114296,0.00017674,120]
[329641542,1718534626459,3000.0,0.00023,30]
[329641543,1718534663031,10000.0,0.0002475,120]
[329641544,1718534705653,10000.0,0.0002475,120]
[329641545,1718534713282,10000.0,0.0002475,120]
[329641546,1718534720785,524.71099009,9.999e-05,2]
[329641547,1718534720989,10000.0,0.0002475,120]
[329641548,1718534729311,10000.0,0.0002475,120]
[329641549,1718534736343,10000.0,0.0002475,120]
[329641550,1718534742867,10000.0,0.0002475,120]
[329641551,1718534749448,10000.0,0.0002475,120]
[329641552,1718534759137,10000.0,0.0002475,120]
[329641553,1718534765498,10000.0,0.0002475,120]
[329641554,1718534772811,10000.0,0.0002475,120]
[329641555,1718534798304,265.83015953,9.999e-05,2]
[329641722,1718535048652,-524.71099009,0.00015078,2]
[329641723,1718535048679,-265.83015953,0.00015078,2]
[329641724,1718535048690,-984.018253,0.00015079,2]
[329641725,1718535048710,-1292.80415005,0.00016047,2]
[329641726,1718535048745,-390.03420958,0.00016132,2]
[329641745,1718535053372,151.01963255,0.00018744,30]
[329641746,1718535053446,151.01963255,0.0001837,120]
[329641747,1718535055305,-25271.35836145,0.00016132,2]
[329641748,1718535055503,-3805.17721886,0.00016132,2]
[329641778,1718535226330,3000.0,0.00023,30]
[329641838,1718535493888,524.71099009,9.999e-05,2]
[329641839,1718535500386,265.83015953,9.999e-05,2]
[329641840,1718535532222,151.01963255,0.00018833,30]
[329641841,1718535532451,151.01963255,0.00018456,120]
[329641844,1718535764093,768.33,0.00010959,2]
[329641846,1718535827607,3000.0,0.00023,30]
[329641852,1718535942730,151.02114296,0.00018972,30]
[329641853,1718535942838,151.02114296,0.00018593,120]
[329641856,1718535953770,524.71099009,9.999e-05,2]
[329641864,1718535990439,265.83015953,9.999e-05,2]
[329641901,1718536077761,342.88,0.00023,30]
[329641902,1718536083851,500.0,0.00023,30]
[329641905,1718536089012,500.0,0.00023,30]
[329641907,1718536095145,500.0,0.00023,30]
[329641916,1718536146990,500.0,0.0002,21]
[329641941,1718536234423,-524.71099009,0.00016057,2]
[329641942,1718536234435,-265.83015953,0.00016058,2]
[329641943,1718536234447,-193.47710336,0.00016064,2]
[329642143,1718536248875,-25.31462354,0.00016064,2]
[329642144,1718536248887,-310.01395126,0.0001613,2]
[329642145,1718536248899,-155.32513625,0.00016131,7]
[329642146,1718536248912,-58.72808604,0.00016132,2]
[329642149,1718536430281,3000.0,0.00023,30]
[329642150,1718536532994,151.01963255,0.00018778,30]
[329642151,1718536533076,151.01963255,0.00018403,120]
[329642152,1718536676537,265.83015953,9.999e-05,2]
[329642153,1718536831307,151.02114296,0.00018914,30]
[329642154,1718536831374,151.02114296,0.00018536,120]
[329642155,1718537028420,3000.0,0.00023,30]
[329642156,1718537106746,265.83015953,9.999e-05,2]
[329642157,1718537233686,151.01963255,0.00019012,30]
[329642158,1718537233756,151.01963255,0.00018632,120]
[329642204,1718537434941,-265.83015953,0.00014781,2]
[329642205,1718537434952,-387.28559047,0.00014782,2]
[329642252,1718537442821,-2612.71440953,0.00014782,2]
[329642253,1718537442858,-192.081066,0.00014807,2]
[329642254,1718537442892,-761.00452447,0.0001603,2]
[329642279,1718537449890,-433.13898491,0.0001603,2]
[329642280,1718537449907,-3803.13734371,0.0001603,2]
[329642294,1718537512146,788.69184776,0.0002,30]
[329642295,1718537512506,3065.23518435,0.0002,30]
[329642296,1718537594095,48683.0,0.000226,29]
[329642297,1718537625295,151.02114296,0.0001925,30]
[329642298,1718537625447,151.02114296,0.00018865,120]
[329642299,1718537641039,3000.0,0.00023,30]
[329642300,1718537693452,0.24773843,0.000225,29]
[329642301,1718537717199,255476.55535728,0.000225,30]
[329642342,1718537861708,265.83015953,9.999e-05,2]
[329642343,1718537868724,151.01963255,0.00019414,30]
[329642344,1718537868891,151.01963255,0.00019026,120]
[329642376,1718538241100,3000.0,0.00023,30]
[329642377,1718538279649,151.01963255,0.00019417,30]
[329642378,1718538279715,151.01963255,0.00019028,120]
[329642379,1718538291389,265.83015953,9.999e-05,2]
[329642380,1718538513093,151.01963255,0.00019577,30]
[329642381,1718538551842,14955.90962536,0.00023,30]
[329642420,1718538637658,-5120.16795895,0.00014134,2]
[329642487,1718538640511,-189.98844079,0.00014134,2]
[329642489,1718538640534,-300.0,0.00014234,2]
[329642492,1718538640551,-300.0,0.00014234,2]
[329642494,1718538640576,-23788.6413639,0.00014235,2]
[329642496,1718538640588,-256.9474619,0.00014355,2]
[329642498,1718538640618,-250.0,0.00014382,2]
[329642500,1718538640630,-403.08219962,0.00015003,2]
[329642502,1718538640648,-1044.87557069,0.00015955,2]
[329642504,1718538640662,-414.57248104,0.0001603,2]
[329642506,1718538640677,-414.57248102,0.00016055,2]
[329642508,1718538640704,-414.57248102,0.0001608,2]
[329642509,1718538640720,-414.57248102,0.00016105,2]
[329642512,1718538640738,-414.57248102,0.0001613,2]
[329642516,1718538640790,-439.56428422,0.0001613,2]
[329642518,1718538640812,-507.832876,0.00016131,2]
[329642520,1718538640838,-507.832876,0.00016131,2]
[329642522,1718538640856,-151.0,0.00016131,2]
[329642523,1718538640874,-151.656206,0.00016131,2]
[329642524,1718538640901,-151.301606,0.00016131,2]
[329642525,1718538640932,-180.731357,0.00016131,2]
[329642526,1718538640957,-180.731357,0.00016131,2]
[329642527,1718538640984,-310.03565417,0.00016131,2]
[329642528,1718538641016,-3836.61469705,0.00016131,2]
[329642529,1718538641041,-2655.77940326,0.00016131,2]
[329642530,1718538641069,-1838.3396175,0.00016131,2]
[329642570,1718538646115,-329.99999,0.00016131,2]
[329642608,1718538647051,-325.99537044,0.00016131,2]
[329646840,1718538838680,3000.0,0.00023,30]
[329646842,1718539233082,10000.0,0.00014,10]
[329646843,1718539260017,9865.05,0.00014,10]
[329646844,1718539428067,3000.0,0.00023,30]
[329647026,1718539846335,-3805.2090702,0.00015104,2]
[329647027,1718539846351,-300.0,0.00016028,2]
[329647029,1718539846364,-501.09585447,0.00016029,2]
[329647030,1718539846383,-372.85667187,0.00016029,2]
[329647032,1718539846401,-500.0,0.00016029,2]
[329647035,1718539846431,-500.0,0.00016029,2]
[329647037,1718539846443,-500.0,0.00016029,2]
[329647039,1718539846480,-501.28817978,0.00016029,2]
[329647041,1718539846504,-500.0,0.00016029,2]
[329647044,1718539846542,-464.13708881,0.00016029,2]
[329647047,1718539846580,-43.5628257,0.00016029,2]
[329647048,1718539846607,-504.4875717,0.00016029,2]
[329647051,1718539846620,-447.31007431,0.00016029,2]
[329647053,1718539846631,-511.63410625,0.00016029,2]
[329647055,1718539846642,-500.68030479,0.00016029,2]
[329647056,1718539846670,-510.39973506,0.00016029,2]
[329647058,1718539846681,-500.0,0.00016029,2]
[329647060,1718539846694,-507.41795249,0.00016029,2]
[329647062,1718539846705,-506.03306693,0.00016029,2]
[329647065,1718539846735,-505.57910574,0.00016029,2]
[329647067,1718539846748,-506.72364213,0.00016029,2]
[329647069,1718539846768,-500.0,0.00016029,2]
[329647071,1718539846783,-500.0,0.00016029,2]
[329647073,1718539846798,-500.0,0.00016029,2]
[329647075,1718539846816,-474.82164988,0.00016029,2]
[329647078,1718539846834,-29.50984531,0.00016029,2]
[329647080,1718539846847,-373.10581299,0.00016029,2]
[329647082,1718539846859,-151.215664,0.00016029,2]
[329647084,1718539846874,-500.0,0.00016029,2]
[329647087,1718539846900,-500.0,0.00016029,2]
[329647089,1718539846916,-151.0,0.00016029,2]
[329647090,1718539846936,-151.689182,0.00016029,2]
[329647092,1718539846952,-502.85720984,0.00016029,2]
[329647094,1718539846967,-513.99593086,0.00016029,2]
[329647097,1718539847018,-506.42822576,0.00016029,2]
[329647099,1718539847047,-427.00205814,0.00016029,2]
[329647101,1718539847058,-65.31996328,0.00016029,2]
[329647166,1718539848241,-85.68003672,0.00016029,2]
[329647168,1718539848252,-151.0,0.00016029,2]
[329647170,1718539848264,-151.0,0.00016029,2]
[329647172,1718539848284,-503.01881914,0.00016029,2]
[329647173,1718539848297,-522.95687642,0.00016029,2]
[329647175,1718539848308,-500.0,0.00016029,2]
[329647177,1718539848323,-500.0,0.00016029,2]
[329647179,1718539848338,-971.85895394,0.00016029,2]
[329647181,1718539848352,-264.26531378,0.00016029,2]
[329647185,1718539848417,-192.78427422,0.00016029,2]
[329647187,1718539848431,-457.049588,0.00016029,2]
[329647189,1718539848442,-457.049588,0.00016029,2]
[329647191,1718539848456,-457.049588,0.00016029,2]
[329647193,1718539848471,-457.049588,0.00016029,2]
[329647195,1718539848486,-457.049588,0.00016029,2]
[329647197,1718539848501,-457.049588,0.00016029,2]
[329647199,1718539848533,-457.049588,0.00016029,2]
[329647200,1718539848555,-457.049588,0.00016029,2]
[329647202,1718539848569,-457.049588,0.00016029,2]
[329647204,1718539848584,-151.0,0.00016029,2]
[329647206,1718539848603,-151.0,0.00016029,2]
[329647209,1718539848618,-151.0,0.00016029,2]
[329647211,1718539848633,-162.658222,0.00016029,2]
[329647214,1718539848649,-162.658222,0.00016029,2]
[329647215,1718539848677,-162.658222,0.00016029,2]
[329647216,1718539848691,-162.658222,0.00016029,2]
[329647218,1718539848709,-162.658222,0.00016029,2]
[329647220,1718539848723,-162.658222,0.00016029,2]
[329647222,1718539848742,-162.658222,0.00016029,2]
[329647224,1718539848756,-162.658222,0.00016029,2]
[329647226,1718539848782,-162.658222,0.00016029,2]
[329647227,1718539848802,-162.658222,0.00016029,2]
[329647229,1718539848816,-162.658222,0.00016029,2]
[329647231,1718539848833,-162.658222,0.00016029,2]
[329647232,1718539848844,-162.658222,0.00016029,2]
[329647233,1718539848854,-162.658222,0.00016029,2]
[329647235,1718539848876,-151.0,0.00016029,2]
[329647237,1718539848908,-151.0,0.00016029,2]
[329647239,1718539848928,-151.0,0.00016029,2]
[329647241,1718539848958,-151.0,0.00016029,2]
[329647243,1718539848989,-151.0,0.00016029,2]
[329647245,1718539849001,-151.0,0.00016029,2]
[329647247,1718539849019,-151.326166,0.00016029,2]
[329647248,1718539849034,-204.244308,0.00016029,2]
[329647256,1718539849045,-204.244308,0.00016029,2]
[329647258,1718539849195,-204.244308,0.00016029,2]
[329647260,1718539849207,-204.244308,0.00016029,2]
[329647262,1718539849225,-204.244308,0.00016029,2]
[329647264,1718539849241,-204.244308,0.00016029,2]
[329647266,1718539849254,-204.244308,0.00016029,2]
[329647268,1718539849268,-204.244308,0.00016029,2]
[329647270,1718539849288,-204.244308,0.00016029,2]
[329647271,1718539849320,-204.244308,0.00016029,2]
[329647273,1718539849331,-204.244308,0.00016029,2]
[329647275,1718539849344,-204.244308,0.00016029,2]
[329647277,1718539849355,-151.0,0.00016029,2]
[329647279,1718539849367,-151.0,0.00016029,2]
[329647280,1718539849393,-151.0,0.00016029,2]
[329647282,1718539849407,-151.0,0.00016029,2]
[329647284,1718539849426,-151.0,0.00016029,2]
[329647286,1718539849438,-151.0,0.00016029,2]
[329647288,1718539849455,-151.0,0.00016029,2]
[329647290,1718539849478,-151.0,0.00016029,2]
[329647291,1718539849492,-151.0,0.00016029,2]
[329647295,1718539849549,-151.0,0.00016029,2]
[329647297,1718539849564,-151.0,0.00016029,2]
[329647299,1718539849581,-151.0,0.00016029,2]
[329647300,1718539849594,-151.0,0.00016029,2]
[329647302,1718539849605,-151.0,0.00016029,2]
[329647304,1718539849616,-151.0,0.00016029,2]
[329647306,1718539849629,-291.499752,0.00016029,2]
[329647308,1718539849641,-794.356201,0.00016029,2]
[329647310,1718539849652,-794.356201,0.00016029,2]
[329647312,1718539849663,-794.356201,0.00016029,2]
[329647314,1718539849676,-794.356201,0.00016029,2]
[329647316,1718539849693,-794.356201,0.00016029,2]
[329647318,1718539849724,-794.356201,0.00016029,2]
[329647321,1718539849751,-794.356201,0.00016029,2]
[329647323,1718539849768,-794.356201,0.00016029,2]
[329647325,1718539849779,-794.356201,0.00016029,2]
[329647328,1718539849821,-794.356201,0.00016029,2]
[329647330,1718539849846,-794.356201,0.00016029,2]
[329647332,1718539849857,-794.356201,0.00016029,2]
[329647334,1718539849878,-151.0,0.00016029,2]
[329647336,1718539849906,-151.0,0.00016029,2]
[329647339,1718539849922,-151.0,0.00016029,2]
[329647340,1718539849952,-151.0,0.00016029,2]
[329647342,1718539849965,-151.0,0.00016029,2]
[329647344,1718539850004,-151.0,0.00016029,2]
[329647346,1718539850024,-151.0,0.00016029,2]
[329647348,1718539850035,-151.0,0.00016029,2]
[329647351,1718539850081,-151.0,0.00016029,2]
[329647352,1718539850098,-151.0,0.00016029,2]
[329647354,1718539850110,-151.0,0.00016029,2]
[329647356,1718539850123,-295.761028,0.00016029,2]
[329647358,1718539850134,-225.900364,0.00016029,2]
[329647360,1718539850149,-225.900364,0.00016029,2]
[329647363,1718539850164,-225.900364,0.00016029,2]
[329647365,1718539850176,-225.900364,0.00016029,2]
[329647367,1718539850199,-225.900364,0.00016029,2]
[329647369,1718539850211,-225.900364,0.00016029,2]
[329647371,1718539850223,-225.900364,0.00016029,2]
[329647373,1718539850234,-225.900364,0.00016029,2]
[329647375,1718539850246,-225.900364,0.00016029,2]
[329647378,1718539850260,-225.900364,0.00016029,2]
[329647380,1718539850300,-225.900364,0.00016029,2]
[329647382,1718539850318,-225.900364,0.00016029,2]
[329647384,1718539850348,-151.0,0.00016029,2]
[329647386,1718539850372,-151.0,0.00016029,2]
[329647388,1718539850401,-151.0,0.00016029,2]
[329647390,1718539850433,-267.914444,0.00016029,2]
[329647392,1718539850464,-151.0,0.00016029,2]
[329647393,1718539850478,-151.0,0.00016029,2]
[329647396,1718539850512,-151.0,0.00016029,2]
[329647398,1718539850535,-151.0,0.00016029,2]
[329647400,1718539850553,-151.0,0.00016029,2]
[329647402,1718539850571,-151.0,0.00016029,2]
[329647404,1718539850582,-151.0,0.00016029,2]
[329647406,1718539850606,-151.0,0.00016029,2]
[329647408,1718539850629,-151.0,0.00016029,2]
[329647410,1718539850696,-151.0,0.00016029,2]
[329647412,1718539850732,-187.581081,0.00016029,2]
[329647413,1718539850754,-500.0,0.00016127,2]
[329647416,1718539850772,-490.90342139,0.00016127,2]
[329647418,1718539850783,-457.049588,0.00016128,2]
[329647419,1718539850801,-457.049588,0.00016128,2]
[329647421,1718539850824,-500.0,0.00016128,2]
[329647423,1718539850847,-500.0,0.00016128,2]
[329647424,1718539850861,-500.0,0.00016128,2]
[329647426,1718539850874,-500.0,0.00016128,2]
[329647429,1718539850948,-500.0,0.00016128,2]
[329647430,1718539850971,-162.658222,0.00016128,2]
[329647432,1718539850993,-162.658222,0.00016128,2]
[329647434,1718539851006,-151.0,0.00016128,2]
[329647435,1718539851040,-151.0,0.00016128,2]
[329647437,1718539851100,-500.0,0.00016128,2]
[329647439,1718539851124,-500.0,0.00016128,2]
[329647442,1718539851150,-204.244308,0.00016128,2]
[329647444,1718539851167,-204.244308,0.00016128,2]
[329647447,1718539851220,-500.0,0.00016128,2]
[329647449,1718539851264,-204.244308,0.00016128,2]
[329647451,1718539851278,-204.244308,0.00016128,2]
[329647452,1718539851314,-2530.37,0.00016128,2]
[329647454,1718539851330,-533.79974041,0.00016128,2]
[329647456,1718539851341,-151.0,0.00016128,2]
[329647458,1718539851366,-500.0,0.00016128,2]
[329647460,1718539851412,-151.0,0.00016128,2]
[329647462,1718539851438,-794.356201,0.00016128,2]
[329647464,1718539851455,-794.356201,0.00016128,2]
[329647466,1718539851466,-794.356201,0.00016128,2]
[329647468,1718539851477,-1545.63,0.00016128,2]
[329647470,1718539851488,-794.356201,0.00016128,2]
[329647472,1718539851500,-151.0,0.00016128,2]
[329647474,1718539851512,-500.0,0.00016128,2]
[329647476,1718539851524,-151.0,0.00016128,2]
[329647478,1718539851560,-225.900364,0.00016128,2]
[329647480,1718539851571,-225.900364,0.00016128,2]
[329647482,1718539851596,-225.900364,0.00016128,2]
[329647484,1718539851629,-225.900364,0.00016128,2]
[329647486,1718539851641,-500.0,0.00016128,2]
[329647488,1718539851651,-500.0,0.00016128,2]
[329647490,1718539851684,-500.0,0.00016128,2]
[329647492,1718539851717,-2478.96958031,0.00016128,2]
[329647516,1718539852143,-1655.90041969,0.00016128,2]
[329647518,1718539852154,-500.0,0.00016128,2]
[329647520,1718539852168,-500.0,0.00016128,2]
[329647522,1718539852179,-185.92644675,0.00016128,2]
[329647524,1718539852190,-500.0,0.00016129,2]
[329647526,1718539852240,-500.0,0.00016129,2]
[329647528,1718539852269,-500.0,0.00016129,2]
[329647531,1718539852324,-102.55149291,0.00016129,2]
[329648682,1718540033318,3000.0,0.00023,30]
[329648739,1718540663245,3000.0,0.00023,30]
[329649324,1718541047928,-500.0,0.00015927,2]
[329649325,1718541047941,-500.0,0.00015927,2]
[329649326,1718541047952,-500.0,0.00015927,2]
[329649327,1718541047970,-500.0,0.00015927,2]
[329649328,1718541047985,-500.0,0.00015927,2]
[329649329,1718541048005,-850.37658468,0.00015927,2]
[329649330,1718541048031,-500.0,0.00015927,2]
[329649331,1718541048064,-2552.74,0.00015927,2]
[329649332,1718541048080,-2552.74,0.00015927,2]
[329649333,1718541048097,-2552.74,0.00015927,2]
[329649334,1718541048152,-1357.78,0.00015927,2]
[329649335,1718541048168,-500.0,0.00015927,2]
[329649336,1718541048179,-500.0,0.00015927,2]
[329649337,1718541048192,-500.0,0.00015927,2]
[329649338,1718541048205,-500.0,0.00015927,2]
[329649340,1718541048217,-500.0,0.00015927,2]
[329649342,1718541048232,-501.7894053,0.00015927,2]
[329649344,1718541048244,-500.0,0.00015927,2]
[329649345,1718541048264,-500.0,0.00015927,2]
[329649348,1718541048278,-500.0,0.00015927,2]
[329649350,1718541048305,-2886.91897857,0.00015927,2]
[329649353,1718541048403,-1102.18102143,0.00015927,2]
[329649355,1718541048418,-6225.43,0.00015927,2]
[329649357,1718541048431,-500.0,0.00015927,2]
[329649359,1718541048447,-500.0,0.00015927,2]
[329649360,1718541048463,-500.0,0.00015927,2]
[329649364,1718541048487,-1413.2,0.00015927,2]
[329649366,1718541048541,-500.0,0.00015927,2]
[329649367,1718541048552,-31276.30935513,0.00015928,2]
[329649395,1718541050208,-396.89914305,0.00015927,2]
[329649397,1718541050228,-500.0,0.00015927,2]
[329649399,1718541050242,-4705.54712983,0.00015928,2]
[329649403,1718541050271,-5426.36929353,0.00015928,2]
[329649880,1718541137677,169.79,0.00010959,2]
[329649881,1718541143246,155.02170304,9.999e-05,2]
[329649882,1718541148230,848.97,0.00010959,2]
[329649886,1718541193047,156.32958621,0.0001,2]
[329649887,1718541229296,3000.0,0.00023,30]
[329649902,1718541385792,775.32644998,9.999e-05,2]
[329649913,1718541654325,411.91631755,9.999e-05,2]
[329649914,1718541720124,660.53196564,9.999e-05,2]
[329649915,1718541823821,10000.0,0.00023,30]
[329649916,1718541834203,10000.0,0.00023,90]
[329649917,1718541842684,9813.21530633,0.0002475,120]
[329649918,1718541847326,3000.0,0.00023,30]
[329649919,1718541854566,10000.0,0.00023,30]
[329649920,1718541864241,10000.0,0.00023192,60]
[329649921,1718541872712,10000.0,0.00023,90]
[329649922,1718541880459,10000.0,0.0002471,120]
[329649923,1718541887301,10000.0,0.00023,90]
[329649924,1718541896023,10000.0,0.00023192,60]
[329649925,1718541899724,1519.22188785,9.999e-05,2]
[329649930,1718541997120,530.70173415,9.999e-05,2]
[329649934,1718542035247,156.32958621,0.0001,2]
[329649981,1718542235595,-156.32958621,0.00015822,2]
[329649983,1718542235609,-2476.91548945,0.00015823,2]
[329649984,1718542235636,-403.52385039,0.00015824,2]
[329649985,1718542235664,-562.74943074,0.00015824,2]
[329649986,1718542235675,-775.69981095,0.00015824,2]
[329650334,1718542251168,-224.30021405,0.00015824,2]
[329650336,1718542251200,-175.09669614,0.00015824,2]
[329650338,1718542251212,-300.0,0.00015825,2]
[329650340,1718542251236,-500.0,0.00015825,2]
[329650341,1718542251250,-500.0,0.00015825,2]
[329650344,1718542251265,-3856.56,0.00015825,2]
[329650346,1718542251275,-500.0,0.00015825,2]
[329650349,1718542251308,-500.0,0.00015825,2]
[329650351,1718542251320,-26608.41531574,0.00015826,2]
[329650353,1718542251350,-14279.8345572,0.00015826,2]
[329650400,1718542422976,3000.0,0.00023,30]
[329650402,1718542450387,-186.78469367,0.0002475,120]
[329650403,1718542450618,-391866.52193429,0.00025,60]
[329650404,1718542450671,-19661.12453845,0.00025,60]
[329650405,1718542450739,-132835.25373384,0.00025,60]
[329651306,1718543025169,3000.0,0.00023,30]